bitfinex/quotes_BTCUSD_20230108
["timestamp","ask_amount","ask_price","bid_price","bid_amount"]
[1673214022590,0.003,16988.0,16987.0,1.88051722]
[1673214023093,0.003,16988.0,16987.0,2.58051722]
[1673214023331,0.003,16988.0,16987.0,2.94827022]
[1673214025716,0.003,16988.0,16987.0,3.59903862]
[1673214026168,0.003,16988.0,16987.0,3.23128562]
[1673214026670,0.003,16988.0,16987.0,3.59903862]
[1673214027930,0.003,16988.0,16987.0,3.23128562]
[1673214028178,0.003,16988.0,16987.0,3.59903862]
[1673214029199,0.003,16988.0,16987.0,3.77515761]
[1673214029451,0.17655621,16990.0,16988.0,0.5]
[1673214029695,1.11393957,16991.0,16989.0,0.83061448]
[1673214029946,1.11393957,16991.0,16990.0,0.56597946]
[1673214030440,1.94895007,16991.0,16990.0,0.56597946]
[1673214031189,2.04595007,16991.0,16990.0,0.57397946]
[1673214033237,2.398488,16991.0,16990.0,0.57397946]
[1673214033482,2.04595007,16991.0,16990.0,0.57397946]
[1673214033991,2.398488,16991.0,16990.0,0.57397946]
[1673214034253,2.58968479,16991.0,16990.0,0.008]
[1673214034477,3.35460282,16991.0,16990.0,0.008]
[1673214034748,3.17823079,16991.0,16990.0,0.008]
[1673214034994,2.81047779,16991.0,16990.0,0.008]
[1673214035495,3.17823079,16991.0,16990.0,0.008]
[1673214036030,3.6189032,16991.0,16990.0,0.008]
[1673214036298,3.35404503,16991.0,16990.0,0.008]
[1673214037593,2.98629203,16991.0,16990.0,0.008]
[1673214038408,3.05585324,16991.0,16990.0,0.008]
[1673214038615,4.01215224,16991.0,16990.0,0.008]
[1673214038885,3.65961431,16991.0,16990.0,0.008]
[1673214041758,3.2189419,16991.0,16990.0,0.008]
[1673214042287,3.65997798,16991.0,16990.0,0.008]
[1673214042541,4.01281327,16991.0,16990.0,0.008]
[1673214042813,3.65997798,16991.0,16990.0,0.008]
[1673214043332,4.01282081,16991.0,16990.0,0.008]
[1673214043584,3.65997798,16991.0,16990.0,0.008]
[1673214043843,3.65997798,16991.0,16990.0,0.53470796]
[1673214043844,3.21631963,16991.0,16990.0,0.53470796]
[1673214044090,3.21631741,16991.0,16990.0,0.53470796]
[1673214044339,3.14303433,16991.0,16990.0,0.53470796]
[1673214044877,2.77528133,16991.0,16990.0,0.53470796]
[1673214046081,3.14303433,16991.0,16990.0,0.53470796]
[1673214046332,3.14303433,16991.0,16990.0,0.008]
[1673214046598,3.38834067,16991.0,16990.0,0.008]
[1673214047346,3.3883584,16991.0,16990.0,0.008]
[1673214047833,3.03549857,16991.0,16990.0,0.008]
[1673214050454,2.59446249,16991.0,16990.0,0.008]
[1673214051284,3.24014679,16991.0,16990.0,0.008]
[1673214051547,3.23704936,16991.0,16990.0,0.008]
[1673214051796,3.76709463,16991.0,16990.0,0.008]
[1673214052840,3.76709463,16991.0,16990.0,0.07025886]
[1673214054368,3.23704936,16991.0,16990.0,0.07025886]
[1673214054627,3.76709463,16991.0,16990.0,0.07025886]
[1673214054888,3.23704936,16991.0,16990.0,0.07025886]
[1673214058396,3.76709463,16991.0,16990.0,0.07025886]
[1673214059114,3.23704936,16991.0,16990.0,0.07025886]
[1673214059372,3.76709463,16991.0,16990.0,0.07025886]
[1673214070853,4.35564063,16991.0,16990.0,0.07025886]
[1673214074649,4.35564063,16991.0,16990.0,0.07018064]
[1673214075672,4.05505141,16991.0,16990.0,0.07018064]
[1673214075927,3.82559536,16991.0,16990.0,0.07018064]
[1673214082255,4.35532646,16991.0,16990.0,0.07018064]
[1673214090469,4.35532646,16991.0,16990.0,0.06918064]
[1673214097447,3.82559536,16991.0,16990.0,0.06918064]
[1673214099179,4.355592,16991.0,16990.0,0.06918064]
[1673214099988,3.767046,16991.0,16990.0,0.06918064]
[1673214100479,3.766984,16991.0,16990.0,0.06918064]
[1673214101993,3.23698736,16991.0,16990.0,0.06918064]
[1673214104164,3.766984,16991.0,16990.0,0.06918064]
[1673214104425,3.23698736,16991.0,16990.0,0.06918064]
[1673214106209,3.766984,16991.0,16990.0,0.06918064]
[1673214121427,3.766984,16991.0,16990.0,0.06561664]
[1673214123993,3.23698736,16991.0,16990.0,0.06561664]
[1673214132014,3.23698736,16991.0,16990.0,0.06525264]
[1673214140967,3.766984,16991.0,16990.0,0.06525264]
[1673214151677,4.35553,16991.0,16990.0,0.06525264]
[1673214151930,4.05239124,16991.0,16990.0,0.06525264]
[1673214152207,3.82553336,16991.0,16990.0,0.06525264]
[1673214152461,3.76688795,16991.0,16990.0,0.06525264]
[1673214154804,3.76688795,16991.0,16990.0,0.06515852]
[1673214163526,4.35543395,16991.0,16990.0,0.06515852]
[1673214165609,3.76688795,16991.0,16990.0,0.06515852]
[1673214167699,4.35543395,16991.0,16990.0,0.06515852]
[1673214170149,3.76688795,16991.0,16990.0,0.06515852]
[1673214171657,3.23698736,16991.0,16990.0,0.06515852]
[1673214171915,3.76688795,16991.0,16990.0,0.06515852]
[1673214172915,3.23698736,16991.0,16990.0,0.06515852]
[1673214176286,3.23698736,16991.0,16990.0,0.06505138]
[1673214176540,3.76688795,16991.0,16990.0,0.06505138]
[1673214182060,3.23698736,16991.0,16990.0,0.06505138]
[1673214183141,3.76688795,16991.0,16990.0,0.06505138]
[1673214189043,3.76688795,16991.0,16990.0,0.00279252]
[1673214189530,4.28832331,16991.0,16990.0,0.00279252]
[1673214190042,4.28832331,16991.0,16990.0,0.06354846]
[1673214190563,3.76688795,16991.0,16990.0,0.06354846]
[1673214193998,3.82553336,16991.0,16990.0,0.06354846]
[1673214194250,4.35545349,16991.0,16990.0,0.06354846]
[1673214194545,4.05659689,16991.0,16990.0,0.06354846]
[1673214194887,3.82553336,16991.0,16990.0,0.06354846]
[1673214196573,4.27129916,16991.0,16990.0,0.06354846]
[1673214196833,4.45307027,16991.0,16990.0,0.06354846]
[1673214197088,4.70390674,16991.0,16990.0,0.06354846]
[1673214197347,4.7308554,16991.0,16990.0,0.06354846]
[1673214197607,4.42476885,16991.0,16990.0,0.06354846]
[1673214197866,3.66282285,16991.0,16990.0,0.06354846]
[1673214198131,4.25136885,16991.0,16990.0,0.06354846]
[1673214198392,3.29506985,16991.0,16990.0,0.06354846]
[1673214198621,2.76519633,16991.0,16990.0,0.06354846]
[1673214198879,3.29506985,16991.0,16990.0,0.06354846]
[1673214199136,2.76519633,16991.0,16990.0,0.06348606]
[1673214201092,3.13294933,16991.0,16990.0,0.06348606]
[1673214202129,2.76519633,16991.0,16990.0,0.06348606]
[1673214202380,3.13294933,16991.0,16990.0,0.06348606]
[1673214202862,3.72149533,16991.0,16990.0,0.06348606]
[1673214203117,4.25136885,16991.0,16990.0,0.06348606]
[1673214204167,3.72149533,16991.0,16990.0,0.06348606]
[1673214204659,4.25136885,16991.0,16990.0,0.06348606]
[1673214216856,4.24836885,16991.0,16990.0,0.06348606]
[1673214222649,3.94626153,16991.0,16990.0,0.06348606]
[1673214222907,3.71849533,16991.0,16990.0,0.06348606]
[1673214224690,3.71818352,16991.0,16990.0,0.06348606]
[1673214226968,4.2480608,16991.0,16990.0,0.06348606]
[1673214228018,4.47582865,16991.0,16990.0,0.06348606]
[1673214228543,4.24806245,16991.0,16990.0,0.06348606]
[1673214234011,4.2479613,16991.0,16990.0,0.06348606]
[1673214234515,3.96124193,16991.0,16990.0,0.06348606]
[1673214234790,3.71808237,16991.0,16990.0,0.06348606]
[1673214237932,3.96124193,16991.0,16990.0,0.06348606]
[1673214238488,4.24798273,16991.0,16990.0,0.06348606]
[1673214239267,4.24798273,16991.0,16990.0,0.56348606]
[1673214243664,4.24398273,16991.0,16990.0,0.56348606]
[1673214246656,3.95716375,16991.0,16990.0,0.56348606]
[1673214246911,3.71408237,16991.0,16990.0,0.56348606]
[1673214247170,4.24412163,16991.0,16990.0,0.56348606]
[1673214247939,4.48720301,16991.0,16990.0,0.56348606]
[1673214248841,4.24412163,16991.0,16990.0,0.56348606]
[1673214253448,3.71408237,16991.0,16990.0,0.56348606]
[1673214254715,4.24416237,16991.0,16990.0,0.56348606]
[1673214254971,4.24416237,16991.0,16990.0,0.56948606]
[1673214257874,4.48852033,16991.0,16990.0,0.56948606]
[1673214258386,3.95844033,16991.0,16990.0,0.56948606]
[1673214258640,4.48852386,16991.0,16990.0,0.56948606]
[1673214258891,3.95844033,16991.0,16990.0,0.56948606]
[1673214262311,3.71408237,16991.0,16990.0,0.56948606]
[1673214265107,3.65563635,16991.0,16990.0,0.56948606]
[1673214265858,4.24418235,16991.0,16990.0,0.56948606]
[1673214266873,3.95844033,16991.0,16990.0,0.56938812]
[1673214267145,3.71408237,16991.0,16990.0,0.56938812]
[1673214267954,3.95844033,16991.0,16990.0,0.56938812]
[1673214268516,4.24420457,16991.0,16990.0,0.56938812]
[1673214268978,4.48856184,16991.0,16990.0,0.56938812]
[1673214269481,3.95844033,16991.0,16990.0,0.56938812]
[1673214270032,4.48856712,16991.0,16990.0,0.56938812]
[1673214270302,4.24420916,16991.0,16990.0,0.56938812]
[1673214271255,3.71408237,16991.0,16990.0,0.56938812]
[1673214271539,4.24420339,16991.0,16990.0,0.56938812]
[1673214272395,3.95881481,16991.0,16990.0,0.56938812]
[1673214272872,3.71408237,16991.0,16990.0,0.56938812]
[1673214273668,3.12553637,16991.0,16990.0,0.56938812]
[1673214274445,4.14419656,16991.0,16990.0,0.56938812]
[1673214274713,4.98532554,16991.0,16990.0,0.56938812]
[1673214275778,4.52481727,16991.0,16990.0,0.56938812]
[1673214276007,3.92842073,16991.0,16990.0,0.56938812]
[1673214276317,3.68368829,16991.0,16990.0,0.56938812]
[1673214276566,4.28008483,16991.0,16990.0,0.56938812]
[1673214276828,3.68368829,16991.0,16990.0,0.56938812]
[1673214278773,3.68368829,16991.0,16990.0,0.56788812]
[1673214283154,4.2137244,16991.0,16990.0,0.56788812]
[1673214287190,3.92842073,16991.0,16990.0,0.56788812]
[1673214287441,3.68368829,16991.0,16990.0,0.56788812]
[1673214290013,3.68368829,16991.0,16990.0,0.56494204]
[1673214296506,4.28008483,16991.0,16990.0,0.56494204]
[1673214296754,3.68368829,16991.0,16990.0,0.56494204]
[1673214297527,4.28008483,16991.0,16990.0,0.56494204]
[1673214298036,4.27968483,16991.0,16990.0,0.56494204]
[1673214301513,4.27968483,16991.0,16990.0,0.55965104]
[1673214302122,4.27968483,16991.0,16990.0,0.57432157]
[1673214302806,3.68328829,16991.0,16990.0,0.57432157]
[1673214304596,4.21325963,16991.0,16990.0,0.57432157]
[1673214304845,4.21326704,16991.0,16990.0,0.57432157]
[1673214306232,3.92802073,16991.0,16990.0,0.57432157]
[1673214306497,3.68328829,16991.0,16990.0,0.57432157]
[1673214307029,4.21327803,16991.0,16990.0,0.57432157]
[1673214308291,3.62473203,16991.0,16990.0,0.57432157]
[1673214309741,3.25697903,16991.0,16990.0,0.57432157]
[1673214310232,3.62473203,16991.0,16990.0,0.57432157]
[1673214311244,4.21327803,16991.0,16990.0,0.57432157]
[1673214313172,3.62473203,16991.0,16990.0,0.57432157]
[1673214316371,3.25697903,16991.0,16990.0,0.57432157]
[1673214317849,3.62473203,16991.0,16990.0,0.57432157]
[1673214318366,3.25697903,16991.0,16990.0,0.57432157]
[1673214319123,3.62473203,16991.0,16990.0,0.57432157]
[1673214319839,3.25697903,16991.0,16990.0,0.57432157]
[1673214321955,3.25697903,16991.0,16990.0,0.57425369]
[1673214322480,3.62473203,16991.0,16990.0,0.57425369]
[1673214322741,3.68328829,16991.0,16990.0,0.57425369]
[1673214323248,4.21319325,16991.0,16990.0,0.57425369]
[1673214324798,4.46267293,16991.0,16990.0,0.57425369]
[1673214325032,3.68328829,16991.0,16990.0,0.57425369]
[1673214325548,4.21320155,16991.0,16990.0,0.57425369]
[1673214326278,4.2131937,16991.0,16990.0,0.57425369]
[1673214326534,3.9327618,16991.0,16990.0,0.57425369]
[1673214326811,3.68328829,16991.0,16990.0,0.57425369]
[1673214329440,3.68310575,16991.0,16990.0,0.57425369]
[1673214341644,4.27950229,16991.0,16990.0,0.57425369]
[1673214342156,3.68310575,16991.0,16990.0,0.57425369]
[1673214343957,4.27950229,16991.0,16990.0,0.57425369]
[1673214344461,3.68310575,16991.0,16990.0,0.57425369]
[1673214353656,3.68310575,16991.0,16990.0,0.57413619]
[1673214357053,4.27950229,16991.0,16990.0,0.57413619]
[1673214357304,3.68310575,16991.0,16990.0,0.57413619]
[1673214360524,4.21307701,16991.0,16990.0,0.57413619]
[1673214361799,3.25677801,16991.0,16990.0,0.57413619]
[1673214362054,3.25677801,16991.0,16990.0,1.0244223]
[1673214362330,3.25677801,16991.0,16990.0,0.57413619]
[1673214362574,3.25677801,16991.0,16990.0,0.57382528]
[1673214366097,2.72680675,16991.0,16990.0,0.57382528]
[1673214366610,3.16826187,16991.0,16990.0,1.02408769]
[1673214368619,3.52132662,16991.0,16990.0,1.02408769]
[1673214369980,3.52132662,16991.0,16990.0,0.57382528]
[1673214370227,3.16826187,16991.0,16990.0,0.57382528]
[1673214370728,3.52127335,16991.0,16990.0,0.57382528]
[1673214372691,3.27561874,16991.0,16990.0,0.57382528]
[1673214372944,3.27561874,16991.0,16990.0,1.02417474]
[1673214374259,2.68707274,16991.0,16990.0,1.02417474]
[1673214375041,2.86349907,16991.0,16990.0,1.02417474]
[1673214375251,2.51048759,16991.0,16990.0,1.02421391]
[1673214375533,2.51048759,16991.0,16990.0,1.37101391]
[1673214375534,1.4106894,16991.0,16990.0,1.37101391]
[1673214375890,0.96956866,16991.0,16990.0,2.84320951]
[1673214376227,0.097,16991.0,16990.0,3.0193285]
[1673214376644,0.00244139,16992.0,16991.0,0.5]
[1673214376812,0.00244139,16992.0,16991.0,1.32927354]
[1673214377077,0.00244139,16992.0,16991.0,2.85206554]
[1673214377338,0.00244139,16992.0,16991.0,3.48250689]
[1673214377865,0.00244139,16992.0,16991.0,4.18250689]
[1673214378953,0.00244139,16992.0,16991.0,4.32150689]
[1673214378954,0.00344139,16992.0,16991.0,4.32150689]
[1673214379142,0.00344139,16992.0,16991.0,4.61577689]
[1673214379893,0.00344139,16992.0,16991.0,4.15793554]
[1673214380401,0.00344139,16992.0,16991.0,5.04648154]
[1673214381166,0.00344139,16992.0,16991.0,4.74648154]
[1673214381420,0.00344139,16992.0,16991.0,5.04648154]
[1673214382444,0.00344139,16992.0,16991.0,5.71596709]
[1673214382691,0.00344139,16992.0,16991.0,5.41596709]
[1673214382962,0.00344139,16992.0,16991.0,4.74648154]
[1673214383220,0.00344139,16992.0,16991.0,5.27446087]
[1673214383485,0.00344139,16992.0,16991.0,4.74648154]
[1673214384037,0.00344139,16992.0,16991.0,5.54211581]
[1673214384492,0.00344139,16992.0,16991.0,5.04648154]
[1673214385030,0.00344139,16992.0,16991.0,5.70886854]
[1673214385280,0.00344139,16992.0,16991.0,5.40886854]
[1673214385795,0.00344139,16992.0,16991.0,4.74648154]
[1673214386023,0.00344139,16992.0,16991.0,5.04648154]
[1673214386277,0.00344139,16992.0,16991.0,6.08548154]
[1673214387329,0.00344139,16992.0,16991.0,6.67942921]
[1673214387596,0.0151663,16993.0,16992.0,0.50747654]
[1673214387926,0.0151663,16993.0,16992.0,5.66260672]
[1673214388110,0.0151663,16993.0,16992.0,5.66170672]
[1673214388368,0.0151663,16993.0,16992.0,6.87515439]
[1673214388620,2.08076421,16994.0,16993.0,0.5]
[1673214388880,2.08076421,16994.0,16993.0,5.64737409]
[1673214389134,2.03296819,16994.0,16993.0,5.94807409]
[1673214389392,1.58869411,16994.0,16993.0,8.23843845]
[1673214389654,1.58869411,16994.0,16993.0,9.62399585]
[1673214389655,1.16289243,16994.0,16993.0,9.62399585]
[1673214389914,0.02333859,16995.0,16994.0,1.34771018]
[1673214390183,0.02333859,16996.0,16995.0,1.1195]
[1673214390433,4.973e-05,16997.0,16996.0,1.1195]
[1673214390694,3.02469501,16998.0,16997.0,0.5]
[1673214390957,3.02469501,16998.0,16997.0,2.51029056]
[1673214391217,3.02469501,16998.0,16997.0,3.21029056]
[1673214391782,3.02469501,16998.0,16997.0,1.240453]
[1673214392004,3.02469501,16998.0,16997.0,0.838]
[1673214392286,3.39244801,16998.0,16995.0,0.5683897]
[1673214392552,3.2623729,16998.0,16995.0,0.5683897]
[1673214392825,3.2623729,16998.0,16997.0,0.139]
[1673214393106,4.92337101,16998.0,16997.0,0.139]
[1673214393594,4.9587877,16998.0,16997.0,0.139]
[1673214393850,0.52056264,16997.0,16994.0,0.22918134]
[1673214394133,1.456126,16996.0,16994.0,0.79671173]
[1673214394467,0.367753,16995.0,16994.0,0.79671173]
[1673214394647,0.367753,16995.0,16994.0,0.79574057]
[1673214394904,1.176746,16996.0,16994.0,0.79774057]
[1673214394905,1.176775,16996.0,16994.0,0.79774057]
[1673214395172,1.176802,16996.0,16994.0,0.79574057]
[1673214395470,1.70479071,16996.0,16994.0,0.79574057]
[1673214396490,1.70469071,16996.0,16994.0,0.79574057]
[1673214404163,0.367753,16995.0,16994.0,0.79574057]
[1673214404414,1.6958521,16995.0,16994.0,0.79574057]
[1673214405644,1.6958521,16995.0,16994.0,0.85874057]
[1673214406622,1.6958521,16995.0,16994.0,0.29121018]
[1673214409187,1.87227843,16995.0,16994.0,0.29121018]
[1673214409693,2.75585774,16995.0,16994.0,0.29121018]
[1673214410193,2.75585774,16995.0,16994.0,0.29621018]
[1673214410661,3.02055215,16995.0,16994.0,0.29621018]
[1673214411173,2.75585774,16995.0,16994.0,0.29621018]
[1673214412189,1.6958521,16995.0,16994.0,0.29621018]
[1673214412715,2.75582398,16995.0,16994.0,0.29621018]
[1673214414780,3.02051839,16995.0,16994.0,0.29621018]
[1673214415307,3.19710354,16995.0,16994.0,0.29621018]
[1673214416599,3.35720045,16995.0,16994.0,0.2960923]
[1673214416853,3.73511988,16995.0,16994.0,0.2960923]
[1673214417106,4.03511988,16995.0,16994.0,0.2960923]
[1673214417611,3.73511988,16995.0,16994.0,0.2960923]
[1673214417867,3.50608243,16995.0,16994.0,0.2960923]
[1673214418132,4.89585373,16995.0,16994.0,0.2960923]
[1673214418401,4.78811045,16995.0,16994.0,0.2960923]
[1673214418904,4.67521325,16995.0,16994.0,0.2960923]
[1673214419405,4.84721325,16995.0,16994.0,0.2960923]
[1673214420806,4.84721325,16995.0,16994.0,0.2330923]
[1673214421210,4.84821325,16995.0,16994.0,0.2420923]
[1673214421674,4.84921325,16995.0,16994.0,0.2520923]
[1673214423974,4.31924199,16995.0,16994.0,0.2520923]
[1673214424236,2.55401799,16995.0,16994.0,0.2520923]
[1673214424744,4.31924199,16995.0,16994.0,0.2520923]
[1673214425019,4.81170632,16995.0,16994.0,0.2520923]
[1673214425501,4.31924199,16995.0,16994.0,0.2520923]
[1673214426026,4.90383548,16995.0,16994.0,0.2520923]
[1673214426325,4.31924199,16995.0,16994.0,0.2520923]
[1673214426732,4.84921325,16995.0,16994.0,0.2520923]
[1673214429278,5.41017457,16995.0,16994.0,0.2520923]
[1673214429538,4.84921325,16995.0,16994.0,0.2520923]
[1673214430100,4.8289496,16995.0,16994.0,0.2520923]
[1673214430358,4.8289496,16995.0,16992.0,0.00847009]
[1673214430359,6.46414614,16995.0,16992.0,0.00847009]
[1673214430535,0.5,16994.0,16992.0,0.00847009]
[1673214430794,3.83576273,16993.0,16992.0,0.00747654]
[1673214431056,5.70258707,16993.0,16992.0,0.00747654]
[1673214431308,6.01108707,16993.0,16992.0,0.00747654]
[1673214431835,6.01108707,16993.0,16992.0,0.01747654]
[1673214432086,7.05138707,16993.0,16992.0,0.00747654]
[1673214432340,7.6592642,16993.0,16992.0,0.01147654]
[1673214433123,7.6452642,16993.0,16992.0,0.00747654]
[1673214433656,6.6039642,16993.0,16992.0,0.00747654]
[1673214434238,6.6039642,16993.0,16992.0,0.01147654]
[1673214434239,5.55178534,16993.0,16992.0,0.01147654]
[1673214434500,5.57004181,16993.0,16992.0,0.01147654]
[1673214437069,5.57004181,16993.0,16992.0,0.01447654]
[1673214438321,5.5282734,16993.0,16992.0,0.01447654]
[1673214439419,5.39784181,16993.0,16992.0,0.01447654]
[1673214440916,5.22454181,16993.0,16992.0,0.06145575]
[1673214442774,5.25331663,16993.0,16992.0,0.06145575]
[1673214444048,5.84719376,16993.0,16992.0,0.06145575]
[1673214448612,6.20255489,16993.0,16992.0,0.06145575]
[1673214448829,5.84891542,16993.0,16992.0,0.06145575]
[1673214449371,5.25141003,16993.0,16992.0,0.06145575]
[1673214449667,5.25141003,16993.0,16992.0,0.07678875]
[1673214450123,5.60506434,16993.0,16992.0,0.07678875]
[1673214450637,5.67097739,16993.0,16992.0,0.07678875]
[1673214451624,5.67140199,16993.0,16992.0,0.07678875]
[1673214451883,5.07710026,16993.0,16992.0,0.07678875]
[1673214452122,5.64262717,16993.0,16992.0,0.07678875]
[1673214454039,5.64262717,16993.0,16992.0,0.06931221]
[1673214456619,5.04832544,16993.0,16992.0,0.06931221]
[1673214456841,0.5,16992.0,16990.0,0.48270529]
[1673214457095,4.03512877,16991.0,16990.0,0.48270529]
[1673214457344,4.72702655,16991.0,16990.0,0.48270529]
[1673214457605,4.72702655,16991.0,16990.0,0.4817066]
[1673214458356,4.56202655,16991.0,16990.0,0.4857066]
[1673214459624,4.74194002,16991.0,16990.0,0.4857066]
[1673214459885,4.16738259,16991.0,16990.0,0.4857066]
[1673214460129,4.41730018,16991.0,16990.0,0.27979317]
[1673214460648,4.95587426,16991.0,16990.0,0.27979317]
[1673214460929,4.76238634,16991.0,16990.0,0.27979317]
[1673214461191,4.41730018,16991.0,16990.0,0.27979317]
[1673214461919,4.81260032,16991.0,16990.0,0.27979317]
[1673214462431,5.15768648,16991.0,16990.0,0.27979317]
[1673214466677,5.02449177,16991.0,16990.0,0.27979317]
[1673214467681,6.79252247,16991.0,16990.0,0.27979317]
[1673214467939,6.79252247,16991.0,16990.0,0.1310572]
[1673214468927,6.96592247,16991.0,16990.0,0.1310572]
[1673214469455,7.13802247,16991.0,16990.0,0.1310572]
[1673214469996,7.13507531,16991.0,16990.0,0.1310572]
[1673214470235,7.13507531,16991.0,16990.0,0.08382508]
[1673214470513,0.5,16990.0,16988.0,0.00489878]
[1673214470779,5.35133744,16989.0,16988.0,0.00489878]
[1673214471052,7.46150714,16989.0,16988.0,0.00489878]
[1673214471531,7.28810714,16989.0,16988.0,0.00489878]
[1673214472039,7.29365964,16989.0,16988.0,0.00489878]
[1673214472315,7.46705964,16989.0,16988.0,7.8e-07]
[1673214472609,0.5,16988.0,16986.0,0.00489854]
[1673214472844,4.4864484,16987.0,16986.0,0.00489854]
[1673214473106,5.71213684,16987.0,16986.0,0.00489854]
[1673214473362,5.11724479,16987.0,16986.0,0.00489854]
[1673214473888,5.11429694,16987.0,16986.0,0.00489854]
[1673214474147,5.14971363,16987.0,16986.0,0.00489854]
[1673214474412,5.39951363,16987.0,16986.0,0.00489854]
[1673214474675,5.88059979,16987.0,16986.0,0.00489854]
[1673214474942,5.87765194,16987.0,16986.0,0.00489854]
[1673214475482,5.09609086,16987.0,16986.0,0.00489854]
[1673214475734,5.27944638,16987.0,16986.0,0.00489854]
[1673214476001,5.27649853,16987.0,16986.0,0.00489854]
[1673214476807,4.96799853,16987.0,16986.0,0.00489854]
[1673214477066,4.436609,16987.0,16986.0,0.00489854]
[1673214477320,4.87684892,16987.0,16986.0,0.00489854]
[1673214477588,4.436609,16987.0,16986.0,0.00489854]
[1673214477893,4.300609,16987.0,16986.0,0.00489854]
[1673214478135,4.43366115,16987.0,16986.0,0.00589854]
[1673214478646,5.13460283,16987.0,16986.0,0.00489854]
[1673214478901,5.13165525,16987.0,16986.0,0.00489854]
[1673214479184,5.21465525,16987.0,16986.0,0.00689854]
[1673214479450,4.68621357,16987.0,16986.0,0.00689854]
[1673214479961,4.68326572,16987.0,16986.0,0.00689854]
[1673214480527,4.38326572,16987.0,16986.0,0.00689854]
[1673214481041,4.38031787,16987.0,16986.0,0.00689854]
[1673214481281,4.82051395,16987.0,16986.0,0.00689854]
[1673214481531,4.82051395,16987.0,16986.0,0.00620869]
[1673214482559,4.38031787,16987.0,16986.0,0.00620869]
[1673214484094,4.97100571,16987.0,16986.0,0.00412966]
[1673214484397,5.8032969,16987.0,16986.0,0.00412966]
[1673214484588,5.27501362,16987.0,16986.0,0.00412966]
[1673214485616,4.91368401,16987.0,16986.0,0.00412966]
[1673214489282,5.13786986,16987.0,16986.0,0.00412966]
[1673214489532,4.91368401,16987.0,16986.0,0.00412966]
[1673214489790,5.7619032,16987.0,16986.0,0.00412966]
[1673214490039,5.4619032,16987.0,16986.0,0.00412966]
[1673214490287,5.0042955,16987.0,16986.0,0.00412966]
[1673214490538,4.47610161,16987.0,16986.0,0.00412966]
[1673214493061,5.0042955,16987.0,16986.0,0.00412966]
[1673214493300,5.3042955,16987.0,16986.0,0.00412966]
[1673214493813,5.0042955,16987.0,16986.0,0.00412966]
[1673214494059,4.47610161,16987.0,16986.0,0.00412966]
[1673214494305,5.0042955,16987.0,16986.0,0.00412966]
[1673214495092,5.3042955,16987.0,16986.0,0.00412966]
[1673214495610,5.83472505,16987.0,16986.0,0.00412966]
[1673214496045,5.3042955,16987.0,16986.0,0.00412966]
[1673214497941,5.0042955,16987.0,16986.0,0.00412966]
[1673214498437,4.38026229,16987.0,16986.0,0.00412966]
[1673214498693,4.74695456,16987.0,16986.0,0.00275639]
[1673214498948,5.50777929,16987.0,16986.0,0.00275639]
[1673214499201,5.05017159,16987.0,16986.0,0.00275639]
[1673214499475,6.05855722,16987.0,16986.0,0.00275639]
[1673214500466,5.46367106,16987.0,16986.0,0.00275639]
[1673214500715,5.46367106,16987.0,16986.0,0.00138027]
[1673214501031,4.91289313,16987.0,16986.0,0.00138027]
[1673214501256,5.20481443,16987.0,16986.0,0.00138027]
[1673214501515,4.91289313,16987.0,16986.0,0.00037964]
[1673214506242,5.2051323,16987.0,16986.0,0.00037964]
[1673214506495,4.91289313,16987.0,16986.0,0.00037964]
[1673214508535,1.13266821,16986.0,16985.0,0.00342875]
[1673214508787,5.98795723,16986.0,16985.0,0.00342875]
[1673214509567,5.23034953,16986.0,16985.0,0.00342875]
[1673214510075,5.24134953,16986.0,16985.0,0.00742875]
[1673214511399,5.54134953,16986.0,16985.0,0.00742875]
[1673214512894,5.99895723,16986.0,16985.0,0.00742875]
[1673214517125,6.18401866,16986.0,16985.0,0.00742875]
[1673214518685,6.18401866,16986.0,16985.0,0.00496421]
[1673214518948,5.99895723,16986.0,16985.0,0.00496421]
[1673214521596,5.40301137,16986.0,16985.0,0.00496421]
[1673214521855,5.99907263,16986.0,16985.0,0.00496421]
[1673214523168,5.40301137,16986.0,16985.0,0.00496421]
[1673214523425,5.36422029,16986.0,16985.0,0.00496421]
[1673214523688,5.40813698,16986.0,16985.0,0.00496421]
[1673214523958,7.17669571,16986.0,16985.0,0.00248609]
[1673214525304,6.58281858,16986.0,16985.0,0.00248609]
[1673214525518,6.75641858,16986.0,16985.0,0.00248609]
[1673214526772,4.98785985,16986.0,16985.0,0.00248609]
[1673214528876,6.75640267,16986.0,16985.0,0.00038665]
[1673214529166,4.98785985,16986.0,16985.0,0.00038665]
[1673214529674,4.95244316,16986.0,16985.0,0.00038665]
[1673214530659,6.72098951,16986.0,16985.0,0.00038665]
[1673214530900,4.95244316,16986.0,16985.0,0.00038665]
[1673214531132,6.72098085,16986.0,16985.0,0.00038665]
[1673214531362,4.95244316,16986.0,16985.0,0.00038665]
[1673214531851,6.72097943,16986.0,16985.0,0.00038665]
[1673214532372,7.31485656,16986.0,16985.0,0.00038665]
[1673214532639,5.54632029,16986.0,16985.0,0.00038665]
[1673214533135,4.95244316,16986.0,16985.0,0.00038665]
[1673214533870,6.72098338,16986.0,16985.0,0.00038665]
[1673214534944,6.72098338,16986.0,16985.0,0.04614465]
[1673214535172,6.72098338,16986.0,16985.0,0.04595386]
[1673214537301,6.72098338,16986.0,16985.0,0.04495386]
[1673214538877,6.72098338,16986.0,16985.0,0.02908604]
[1673214539635,6.54738338,16986.0,16985.0,0.02908604]
[1673214539900,7.14126051,16986.0,16985.0,0.02908604]
[1673214540155,0.5,16985.0,16983.0,0.00725549]
[1673214540410,3.7371427,16984.0,16983.0,0.00725549]
[1673214540696,8.0428056,16984.0,16983.0,0.00725549]
[1673214540926,8.63668273,16984.0,16983.0,4.9e-07]
[1673214541181,0.5,16983.0,16982.0,0.01213749]
[1673214541438,6.70870138,16983.0,16982.0,0.01213749]
[1673214542030,6.70514338,16983.0,16982.0,0.01213749]
[1673214542449,6.84114338,16983.0,16982.0,0.01213749]
[1673214543460,5.5353326,16983.0,16982.0,0.01213749]
[1673214544232,5.07260316,16983.0,16982.0,0.01213749]
[1673214545792,5.6680224,16983.0,16982.0,0.01213749]
[1673214547294,6.31988239,16983.0,16982.0,0.01213749]
[1673214548036,5.6680224,16983.0,16982.0,0.01213749]
[1673214548809,5.6680224,16983.0,16982.0,0.00833581]
[1673214550572,6.11099975,16983.0,16982.0,0.00833581]
[1673214550838,5.51558051,16983.0,16982.0,0.00833581]
[1673214551090,6.11077025,16983.0,16982.0,0.00833581]
[1673214551358,5.51558051,16983.0,16982.0,0.00833581]
[1673214551832,5.07260316,16983.0,16982.0,0.00833581]
[1673214552093,5.66779424,16983.0,16982.0,0.00833581]
[1673214553876,5.31022105,16983.0,16982.0,0.00430939]
[1673214554130,5.10795985,16983.0,16982.0,0.00430939]
[1673214554933,6.87692928,16983.0,16982.0,0.00430939]
[1673214555195,7.47080641,16983.0,16982.0,0.00430939]
[1673214555434,5.10795985,16983.0,16982.0,0.00430939]
[1673214556501,5.07254316,16983.0,16982.0,0.00430939]